[Event "Titled Tuesday Blitz February 15 Late 2022"]
[White "Indjic, Aleksandar"]
[Black "Golubev, Mikhail"]
[WhiteFideId "911925"]
[BlackFideId "14100983"]
[WhiteElo "2616"]
[BlackElo "2374"]
[Result "1-0"]
[Round "06"]
[TimeControl "180+1"]
[Date "2022.02.15"]
[WhiteClock "0:00:14"]
[BlackClock "0:00:03"]

1. e4 {[%clk 0:03:00]}  c5 {[%clk 0:02:59]} 2. Nc3 {[%clk 0:03:01]}  d6 {[%clk 0:02:58]} 3. d4 {[%clk 0:03:00]}  cxd4 {[%clk 0:02:48]} 4. Qxd4 {[%clk 0:03:00]}  Nc6 {[%clk 0:02:48]} 5. Qd2 {[%clk 0:03:00]}  g6 {[%clk 0:02:43]} 6. b3 {[%clk 0:03:00]}  Bh6 {[%clk 0:02:43]} 7. f4 {[%clk 0:02:57]}  f5 {[%clk 0:02:37]} 8. Bb2 {[%clk 0:02:56]}  Nf6 {[%clk 0:02:35]} 9. O-O-O {[%clk 0:02:52]}  O-O {[%clk 0:02:23]} 10. Nge2 {[%clk 0:02:46]}  fxe4 {[%clk 0:02:06]} 11. Nxe4 {[%clk 0:02:42]}  Nxe4 {[%clk 0:02:03]} 12. Qd5+ {[%clk 0:02:41]}  Rf7 {[%clk 0:02:03]} 13. Qxe4 {[%clk 0:02:38]}  Bf5 {[%clk 0:02:00]} 14. Qa4 {[%clk 0:01:38]}  b5 {[%clk 0:01:36]} 15. Qxb5 {[%clk 0:01:33]}  Rc8 {[%clk 0:01:36]} 16. Nc3 {[%clk 0:01:25]}  Bxf4+ {[%clk 0:01:24]} 17. Kb1 {[%clk 0:01:24]}  Ne5 {[%clk 0:01:21]} 18. g3 {[%clk 0:00:53]}  Bh6 {[%clk 0:01:09]} 19. Qa4 {[%clk 0:00:36]}  Bg7 {[%clk 0:01:02]} 20. Ba6 {[%clk 0:00:31]}  Rc5 {[%clk 0:00:57]} 21. Rd5 {[%clk 0:00:26]}  Qc7 {[%clk 0:00:32]} 22. Rxc5 {[%clk 0:00:25]}  Qxc5 {[%clk 0:00:32]} 23. Rc1 {[%clk 0:00:26]}  Bh6 {[%clk 0:00:28]} 24. Rd1 {[%clk 0:00:26]}  Qf2 {[%clk 0:00:21]} 25. Ne4 {[%clk 0:00:23]}  Qf3 {[%clk 0:00:21]} 26. Re1 {[%clk 0:00:22]}  e6 {[%clk 0:00:13]} 27. Bxe5 {[%clk 0:00:20]}  dxe5 {[%clk 0:00:12]} 28. Bd3 {[%clk 0:00:20]}  Bf8 {[%clk 0:00:07]} 29. Kb2 {[%clk 0:00:18]}  Qh5 {[%clk 0:00:06]} 30. h4 {[%clk 0:00:16]}  Qg4 {[%clk 0:00:05]} 31. Qc4 {[%clk 0:00:15]}  Bxe4 {[%clk 0:00:05]} 32. Rxe4 {[%clk 0:00:15]}  Qxg3 {[%clk 0:00:04]} 33. Qxe6 {[%clk 0:00:15]}  Qg1 {[%clk 0:00:03]} 34. Bc4 {[%clk 0:00:14]} 1-0


[Site "https://www.chess.com"]

[Event "Titled Tuesday Blitz February 15 Late 2022"]
[White "Iskusnyh, Sergei"]
[Black "Grigorov, Grigor"]
[WhiteFideId "4120027"]
[BlackFideId "2907313"]
[WhiteElo "2492"]
[BlackElo "2510"]
[Result "0-1"]
[Round "06"]
[TimeControl "180+1"]
[Date "2022.02.15"]
[WhiteClock "0:00:02"]
[BlackClock "0:00:09"]

1. d4 {[%clk 0:03:00]}  Nf6 {[%clk 0:02:59]} 2. c4 {[%clk 0:03:00]}  e6 {[%clk 0:03:00]} 3. g3 {[%clk 0:03:00]}  d5 {[%clk 0:02:59]} 4. Nf3 {[%clk 0:02:59]}  Be7 {[%clk 0:02:59]} 5. Bg2 {[%clk 0:02:59]}  O-O {[%clk 0:03:00]} 6. O-O {[%clk 0:03:00]}  dxc4 {[%clk 0:02:59]} 7. Qa4 {[%clk 0:03:00]}  b6 {[%clk 0:02:59]} 8. Qxc4 {[%clk 0:02:56]}  Bb7 {[%clk 0:02:58]} 9. Nc3 {[%clk 0:02:54]}  c5 {[%clk 0:02:57]} 10. dxc5 {[%clk 0:02:46]}  Bxc5 {[%clk 0:02:57]} 11. Bg5 {[%clk 0:02:24]}  Nbd7 {[%clk 0:02:55]} 12. Rad1 {[%clk 0:02:23]}  Rc8 {[%clk 0:02:26]} 13. Qa4 {[%clk 0:02:05]}  Bc6 {[%clk 0:02:22]} 14. Qxa7 {[%clk 0:01:10]}  Ra8 {[%clk 0:02:18]} 15. Bxf6 {[%clk 0:01:09]}  gxf6 {[%clk 0:02:05]} 16. Rxd7 {[%clk 0:01:00]}  Rxa7 {[%clk 0:01:57]} 17. Rxd8 {[%clk 0:00:58]}  Rxd8 {[%clk 0:01:56]} 18. Rc1 {[%clk 0:00:53]}  f5 {[%clk 0:01:40]} 19. Ne5 {[%clk 0:00:46]}  Bxg2 {[%clk 0:01:37]} 20. Kxg2 {[%clk 0:00:46]}  Rd2 {[%clk 0:01:30]} 21. Nc4 {[%clk 0:00:45]}  Rd8 {[%clk 0:01:23]} 22. a3 {[%clk 0:00:44]}  Bd4 {[%clk 0:01:17]} 23. Nb5 {[%clk 0:00:42]}  Rb7 {[%clk 0:01:04]} 24. Rd1 {[%clk 0:00:22]}  Bf6 {[%clk 0:01:02]} 25. Rc1 {[%clk 0:00:17]}  Rd5 {[%clk 0:00:58]} 26. a4 {[%clk 0:00:17]}  Rc5 {[%clk 0:00:52]} 27. b3 {[%clk 0:00:16]}  Rd7 {[%clk 0:00:48]} 28. Rc2 {[%clk 0:00:15]}  Rd1 {[%clk 0:00:43]} 29. e3 {[%clk 0:00:15]}  Rb1 {[%clk 0:00:40]} 30. Rd2 {[%clk 0:00:09]}  Rxb3 {[%clk 0:00:32]} 31. Nxb6 {[%clk 0:00:09]}  Rc1 {[%clk 0:00:29]} 32. Nd7 {[%clk 0:00:09]}  Be7 {[%clk 0:00:25]} 33. Ne5 {[%clk 0:00:09]}  Bf6 {[%clk 0:00:20]} 34. Nd7 {[%clk 0:00:08]}  Ba1 {[%clk 0:00:19]} 35. Nd6 {[%clk 0:00:04]}  Rbb1 {[%clk 0:00:14]} 36. h4 {[%clk 0:00:03]}  Rd1 {[%clk 0:00:14]} 37. Nc4 {[%clk 0:00:01]}  Rxd2 {[%clk 0:00:14]} 38. Nxd2 {[%clk 0:00:02]}  Rd1 {[%clk 0:00:15]} 39. Nb3 {[%clk 0:00:02]}  Rxd7 {[%clk 0:00:14]} 40. Nxa1 {[%clk 0:00:03]}  Ra7 {[%clk 0:00:14]} 41. Nb3 {[%clk 0:00:02]}  Rxa4 {[%clk 0:00:14]} 42. Nd4 {[%clk 0:00:02]}  Kg7 {[%clk 0:00:14]} 43. Nf3 {[%clk 0:00:02]}  Kf6 {[%clk 0:00:13]} 44. Ng5 {[%clk 0:00:02]}  h6 {[%clk 0:00:13]} 45. Nh3 {[%clk 0:00:03]}  e5 {[%clk 0:00:13]} 46. Ng1 {[%clk 0:00:02]}  Ra2 {[%clk 0:00:13]} 47. Nf3 {[%clk 0:00:02]}  Ke6 {[%clk 0:00:12]} 48. h5 {[%clk 0:00:02]}  Kf6 {[%clk 0:00:09]} 0-1


[Site "https://www.chess.com"]

[Event "Titled Tuesday Blitz February 15 Late 2022"]
[White "Jaferian, Koosha"]
[Black "Koepke, Christian"]
[WhiteFideId "12507440"]
[BlackFideId "4655737"]
[WhiteElo "2027"]
[BlackElo "2180"]
[Result "1-0"]
[Round "06"]
[TimeControl "180+1"]
[Date "2022.02.16"]
[WhiteClock "0:00:47"]
[BlackClock "0:00:11"]

1. Nf3 {[%clk 0:03:00]}  d5 {[%clk 0:02:55]} 2. b3 {[%clk 0:03:01]}  Bf5 {[%clk 0:02:54]} 3. Bb2 {[%clk 0:03:01]}  e6 {[%clk 0:02:54]} 4. g3 {[%clk 0:03:02]}  Nd7 {[%clk 0:02:54]} 5. Bg2 {[%clk 0:03:02]}  Ngf6 {[%clk 0:02:54]} 6. O-O {[%clk 0:03:03]}  h6 {[%clk 0:02:54]} 7. d3 {[%clk 0:03:04]}  Be7 {[%clk 0:02:53]} 8. Nbd2 {[%clk 0:03:04]}  O-O {[%clk 0:02:52]} 9. e3 {[%clk 0:03:05]}  a5 {[%clk 0:02:51]} 10. a4 {[%clk 0:03:05]}  c6 {[%clk 0:02:48]} 11. Qe2 {[%clk 0:03:05]}  b5 {[%clk 0:02:45]} 12. Ne1 {[%clk 0:03:05]}  Nb6 {[%clk 0:02:39]} 13. f4 {[%clk 0:02:58]}  bxa4 {[%clk 0:02:36]} 14. bxa4 {[%clk 0:02:58]}  Rb8 {[%clk 0:02:25]} 15. Nb3 {[%clk 0:02:51]}  Nbd7 {[%clk 0:02:15]} 16. h3 {[%clk 0:02:46]}  c5 {[%clk 0:02:14]} 17. Bc3 {[%clk 0:02:43]}  c4 {[%clk 0:01:56]} 18. Nxa5 {[%clk 0:02:43]}  cxd3 {[%clk 0:01:50]} 19. cxd3 {[%clk 0:02:44]}  Qc7 {[%clk 0:01:44]} 20. Rc1 {[%clk 0:02:32]}  Bb4 {[%clk 0:01:31]} 21. Bxb4 {[%clk 0:02:19]}  Qxc1 {[%clk 0:01:31]} 22. Bxf8 {[%clk 0:02:20]}  Nxf8 {[%clk 0:01:27]} 23. Nc2 {[%clk 0:02:05]}  Qb2 {[%clk 0:01:26]} 24. Nc6 {[%clk 0:02:05]}  Rb3 {[%clk 0:01:18]} 25. Ne7+ {[%clk 0:02:03]}  Kh7 {[%clk 0:01:15]} 26. Nxf5 {[%clk 0:02:03]}  exf5 {[%clk 0:01:15]} 27. Rf2 {[%clk 0:01:56]}  Qc3 {[%clk 0:01:04]} 28. Nd4 {[%clk 0:01:53]}  Ra3 {[%clk 0:00:50]} 29. Nxf5 {[%clk 0:01:48]}  Rxa4 {[%clk 0:00:47]} 30. g4 {[%clk 0:01:36]}  g6 {[%clk 0:00:26]} 31. Nd4 {[%clk 0:01:16]}  Ra3 {[%clk 0:00:26]} 32. g5 {[%clk 0:01:14]}  Nh5 {[%clk 0:00:22]} 33. Bxd5 {[%clk 0:01:09]}  Ng3 {[%clk 0:00:19]} 34. Qf3 {[%clk 0:01:02]}  Ra1+ {[%clk 0:00:16]} 35. Kg2 {[%clk 0:00:59]}  Nf5 {[%clk 0:00:15]} 36. Nxf5 {[%clk 0:00:56]}  gxf5 {[%clk 0:00:13]} 37. Qh5 {[%clk 0:00:46]}  Ng6 {[%clk 0:00:13]} 38. Qxh6+ {[%clk 0:00:45]}  Kg8 {[%clk 0:00:11]} 39. Qxg6+ {[%clk 0:00:46]}  Qg7 {[%clk 0:00:11]} 40. Bxf7+ {[%clk 0:00:46]}  Kf8 {[%clk 0:00:11]} 41. Qxg7+ {[%clk 0:00:47]}  Kxg7 {[%clk 0:00:11]} 42. Bc4 {[%clk 0:00:47]} 1-0


[Site "https://www.chess.com"]

[Event "Titled Tuesday Blitz February 15 Late 2022"]
[White "Jakubowski, Krzysztof"]
[Black "Yoo, Christopher Woojin"]
[WhiteFideId "1112848"]
[BlackFideId "30909694"]
[WhiteElo "2365"]
[BlackElo "2105"]
[Result "0-1"]
[Round "06"]
[TimeControl "180+1"]
[Date "2022.02.15"]
[WhiteClock "0:00:03"]
[BlackClock "0:00:02"]

1. e4 {[%clk 0:03:00]}  c5 {[%clk 0:02:58]} 2. Nf3 {[%clk 0:03:00]}  e6 {[%clk 0:02:59]} 3. d4 {[%clk 0:03:00]}  cxd4 {[%clk 0:02:59]} 4. Nxd4 {[%clk 0:03:01]}  Nf6 {[%clk 0:03:00]} 5. Nc3 {[%clk 0:03:00]}  Nc6 {[%clk 0:03:01]} 6. Ndb5 {[%clk 0:03:00]}  Bc5 {[%clk 0:03:00]} 7. Bf4 {[%clk 0:02:58]}  O-O {[%clk 0:03:00]} 8. Bc7 {[%clk 0:02:58]}  Qe7 {[%clk 0:03:00]} 9. Bd6 {[%clk 0:02:58]}  Bxd6 {[%clk 0:03:01]} 10. Qxd6 {[%clk 0:02:57]}  Qd8 {[%clk 0:03:01]} 11. O-O-O {[%clk 0:02:49]}  Ne8 {[%clk 0:02:47]} 12. Qg3 {[%clk 0:02:47]}  a6 {[%clk 0:02:43]} 13. Nd6 {[%clk 0:02:44]}  Nxd6 {[%clk 0:02:42]} 14. Rxd6 {[%clk 0:02:44]}  Qa5 {[%clk 0:01:50]} 15. Be2 {[%clk 0:02:40]}  b5 {[%clk 0:01:45]} 16. Kb1 {[%clk 0:02:39]}  b4 {[%clk 0:01:45]} 17. Nd1 {[%clk 0:02:39]}  Qc5 {[%clk 0:01:37]} 18. Rd2 {[%clk 0:02:21]}  d5 {[%clk 0:01:27]} 19. exd5 {[%clk 0:02:14]}  exd5 {[%clk 0:01:28]} 20. Bd3 {[%clk 0:02:11]}  Be6 {[%clk 0:01:22]} 21. h4 {[%clk 0:02:03]}  d4 {[%clk 0:01:20]} 22. h5 {[%clk 0:02:02]}  h6 {[%clk 0:01:20]} 23. Qf4 {[%clk 0:01:47]}  Ne5 {[%clk 0:01:15]} 24. Be4 {[%clk 0:01:30]}  Rac8 {[%clk 0:01:06]} 25. b3 {[%clk 0:01:28]}  Nc4 {[%clk 0:00:27]} 26. Re2 {[%clk 0:00:42]}  Na3+ {[%clk 0:00:21]} 27. Kc1 {[%clk 0:00:42]}  Qb5 {[%clk 0:00:17]} 28. Rd2 {[%clk 0:00:35]}  d3 {[%clk 0:00:16]} 29. Ne3 {[%clk 0:00:26]}  Nxc2 {[%clk 0:00:06]} 30. Nxc2 {[%clk 0:00:25]}  dxc2 {[%clk 0:00:07]} 31. Bxc2 {[%clk 0:00:21]}  Bf5 {[%clk 0:00:05]} 32. Re1 {[%clk 0:00:15]}  Qc5 {[%clk 0:00:03]} 33. Re5 {[%clk 0:00:13]}  Qc3 {[%clk 0:00:03]} 34. Qxf5 {[%clk 0:00:03]}  Qa1# {[%clk 0:00:02]} 0-1


[Site "https://www.chess.com"]

[Event "Titled Tuesday Blitz February 15 Late 2022"]
[White "Klukin, Kirill"]
[Black "Vovk, Orest"]
[WhiteFideId "24199273"]
[BlackFideId "14113490"]
[WhiteElo "2324"]
[BlackElo "2203"]
[Result "1-0"]
[Round "06"]
[TimeControl "180+1"]
[Date "2022.02.16"]
[WhiteClock "0:00:43"]
[BlackClock "0:00:14"]

1. c4 {[%clk 0:03:00]}  g5 {[%clk 0:02:58]} 2. d4 {[%clk 0:03:00]}  h6 {[%clk 0:02:57]} 3. h4 {[%clk 0:02:58]}  g4 {[%clk 0:02:57]} 4. Nc3 {[%clk 0:02:58]}  Bg7 {[%clk 0:02:57]} 5. Bf4 {[%clk 0:02:58]}  c5 {[%clk 0:02:58]} 6. e3 {[%clk 0:02:58]}  Nc6 {[%clk 0:02:56]} 7. Qxg4 {[%clk 0:02:54]}  Kf8 {[%clk 0:02:54]} 8. d5 {[%clk 0:02:50]}  Bxc3+ {[%clk 0:02:53]} 9. bxc3 {[%clk 0:02:48]}  Qa5 {[%clk 0:02:53]} 10. Rc1 {[%clk 0:02:44]}  Qa3 {[%clk 0:02:35]} 11. e4 {[%clk 0:02:44]}  Nf6 {[%clk 0:02:22]} 12. Qd1 {[%clk 0:02:37]}  Na5 {[%clk 0:02:21]} 13. e5 {[%clk 0:02:27]}  Ne8 {[%clk 0:02:13]} 14. Bd3 {[%clk 0:02:24]}  d6 {[%clk 0:02:09]} 15. Ne2 {[%clk 0:02:07]}  dxe5 {[%clk 0:02:06]} 16. Bxe5 {[%clk 0:02:07]}  f6 {[%clk 0:02:06]} 17. Bf4 {[%clk 0:02:06]}  Nd6 {[%clk 0:02:06]} 18. Bxd6 {[%clk 0:02:07]}  exd6 {[%clk 0:02:05]} 19. Nf4 {[%clk 0:02:08]}  Bg4 {[%clk 0:01:44]} 20. Qxg4 {[%clk 0:01:22]}  Qxc1+ {[%clk 0:01:42]} 21. Ke2 {[%clk 0:01:22]}  Re8+ {[%clk 0:01:35]} 22. Ne6+ {[%clk 0:01:02]}  Rxe6+ {[%clk 0:01:16]} 23. Qxe6 {[%clk 0:01:02]}  Qxh1 {[%clk 0:00:22]} 24. Qxf6+ {[%clk 0:01:02]}  Kg8 {[%clk 0:00:22]} 25. Qd8+ {[%clk 0:00:55]}  Kf7 {[%clk 0:00:18]} 26. Qd7+ {[%clk 0:00:45]}  Kg8 {[%clk 0:00:14]} 27. Qe8+ {[%clk 0:00:43]}  Kg7 {[%clk 0:00:15]} 28. Qe7+ {[%clk 0:00:44]}  Kg8 {[%clk 0:00:14]} 29. Bg6 {[%clk 0:00:43]} 1-0


[Site "https://www.chess.com"]

[Event "Titled Tuesday Blitz February 15 Late 2022"]
[White "Kobo, Ori"]
[Black "Goltseva, Ekaterina"]
[WhiteFideId "2812320"]
[BlackFideId "24173770"]
[WhiteElo "2420"]
[BlackElo "2140"]
[Result "0-1"]
[Round "06"]
[TimeControl "180+1"]
[Date "2022.02.15"]
[WhiteClock "0:00:01"]
[BlackClock "0:00:07"]

1. d4 {[%clk 0:03:00]}  Nf6 {[%clk 0:02:38]} 2. c4 {[%clk 0:02:59]}  e6 {[%clk 0:02:37]} 3. Nc3 {[%clk 0:02:59]}  Bb4 {[%clk 0:02:37]} 4. f3 {[%clk 0:02:55]}  d5 {[%clk 0:02:35]} 5. a3 {[%clk 0:02:55]}  Be7 {[%clk 0:02:35]} 6. e4 {[%clk 0:02:55]}  dxe4 {[%clk 0:02:35]} 7. fxe4 {[%clk 0:02:56]}  c5 {[%clk 0:02:36]} 8. d5 {[%clk 0:02:57]}  exd5 {[%clk 0:02:36]} 9. exd5 {[%clk 0:02:57]}  O-O {[%clk 0:02:35]} 10. Bd3 {[%clk 0:02:55]}  Bd6 {[%clk 0:02:33]} 11. Nge2 {[%clk 0:02:54]}  a6 {[%clk 0:02:29]} 12. O-O {[%clk 0:02:39]}  Bg4 {[%clk 0:02:23]} 13. h3 {[%clk 0:02:36]}  Bh5 {[%clk 0:02:20]} 14. Bg5 {[%clk 0:02:26]}  Nbd7 {[%clk 0:02:17]} 15. Qc2 {[%clk 0:02:24]}  Qc7 {[%clk 0:02:05]} 16. Ne4 {[%clk 0:02:10]}  Nxe4 {[%clk 0:01:55]} 17. Bxe4 {[%clk 0:02:11]}  Bg6 {[%clk 0:01:54]} 18. Bxg6 {[%clk 0:02:02]}  hxg6 {[%clk 0:01:53]} 19. Nc3 {[%clk 0:02:02]}  Rae8 {[%clk 0:01:48]} 20. Rae1 {[%clk 0:01:55]}  Be5 {[%clk 0:01:43]} 21. Kh1 {[%clk 0:01:32]}  Qb8 {[%clk 0:01:24]} 22. Ne4 {[%clk 0:01:26]}  b6 {[%clk 0:01:17]} 23. b4 {[%clk 0:01:23]}  Qc7 {[%clk 0:01:09]} 24. Qd3 {[%clk 0:01:16]}  f5 {[%clk 0:01:05]} 25. Nd2 {[%clk 0:01:13]}  Bg3 {[%clk 0:00:56]} 26. Re6 {[%clk 0:01:06]}  Rxe6 {[%clk 0:00:41]} 27. dxe6 {[%clk 0:01:06]}  Nf6 {[%clk 0:00:42]} 28. Bxf6 {[%clk 0:00:45]}  gxf6 {[%clk 0:00:36]} 29. Nf3 {[%clk 0:00:34]}  Re8 {[%clk 0:00:34]} 30. Qd7 {[%clk 0:00:19]}  Qxd7 {[%clk 0:00:33]} 31. exd7 {[%clk 0:00:20]}  Rd8 {[%clk 0:00:32]} 32. Rd1 {[%clk 0:00:20]}  Kf7 {[%clk 0:00:30]} 33. Kg1 {[%clk 0:00:14]}  Ke7 {[%clk 0:00:30]} 34. Kf1 {[%clk 0:00:10]}  Rxd7 {[%clk 0:00:29]} 35. Rxd7+ {[%clk 0:00:10]}  Kxd7 {[%clk 0:00:30]} 36. Ke2 {[%clk 0:00:11]}  Bd6 {[%clk 0:00:28]} 37. bxc5 {[%clk 0:00:06]}  Bxc5 {[%clk 0:00:28]} 38. a4 {[%clk 0:00:06]}  Ke6 {[%clk 0:00:28]} 39. Kd3 {[%clk 0:00:07]}  g5 {[%clk 0:00:27]} 40. Kc3 {[%clk 0:00:03]}  f4 {[%clk 0:00:24]} 41. Kd3 {[%clk 0:00:03]}  Kf5 {[%clk 0:00:24]} 42. Nd2 {[%clk 0:00:04]}  g4 {[%clk 0:00:18]} 43. hxg4+ {[%clk 0:00:05]}  Kxg4 {[%clk 0:00:19]} 44. Ke2 {[%clk 0:00:05]}  f5 {[%clk 0:00:17]} 45. Kf1 {[%clk 0:00:05]}  Kg3 {[%clk 0:00:17]} 46. Nb3 {[%clk 0:00:05]}  f3 {[%clk 0:00:11]} 47. gxf3 {[%clk 0:00:04]}  Kxf3 {[%clk 0:00:12]} 48. a5 {[%clk 0:00:04]}  Ke4 {[%clk 0:00:12]} 49. axb6 {[%clk 0:00:04]}  Bxb6 {[%clk 0:00:12]} 50. c5 {[%clk 0:00:03]}  Bc7 {[%clk 0:00:12]} 51. Ke2 {[%clk 0:00:02]}  a5 {[%clk 0:00:12]} 52. Nd2+ {[%clk 0:00:03]}  Kd5 {[%clk 0:00:12]} 53. Kf3 {[%clk 0:00:02]}  Kxc5 {[%clk 0:00:11]} 54. Nb3+ {[%clk 0:00:02]}  Kb4 {[%clk 0:00:12]} 55. Nd4 {[%clk 0:00:02]}  f4 {[%clk 0:00:09]} 56. Ne6 {[%clk 0:00:03]}  Bd6 {[%clk 0:00:09]} 57. Nd4 {[%clk 0:00:01]}  a4 {[%clk 0:00:09]} 58. Nf5 {[%clk 0:00:02]}  Bb8 {[%clk 0:00:08]} 59. Ne7 {[%clk 0:00:01]}  Kb3 {[%clk 0:00:08]} 60. Nc6 {[%clk 0:00:01]}  Bd6 {[%clk 0:00:07]} 61. Nd4+ {[%clk 0:00:01]}  Kb2 {[%clk 0:00:07]} 62. Nb5 {[%clk 0:00:01]}  Bb8 {[%clk 0:00:07]} 0-1


[Site "https://www.chess.com"]

[Event "Titled Tuesday Blitz February 15 Late 2022"]
[White "Kushko, Dmitriy"]
[Black "Novikova, Galina"]
[WhiteFideId "14162261"]
[BlackFideId "4157095"]
[WhiteElo "2225"]
[BlackElo "1863"]
[Result "1-0"]
[Round "06"]
[TimeControl "180+1"]
[Date "2022.02.16"]
[WhiteClock "0:00:14"]
[BlackClock "0:00:11"]

1. Nf3 {[%clk 0:01:44]}  f5 {[%clk 0:02:58]} 2. g3 {[%clk 0:01:42]}  Nf6 {[%clk 0:02:58]} 3. Bg2 {[%clk 0:01:42]}  e6 {[%clk 0:02:59]} 4. O-O {[%clk 0:01:42]}  d6 {[%clk 0:02:59]} 5. c4 {[%clk 0:01:43]}  Be7 {[%clk 0:03:00]} 6. d4 {[%clk 0:01:43]}  O-O {[%clk 0:02:59]} 7. Nc3 {[%clk 0:01:44]}  Nc6 {[%clk 0:02:59]} 8. d5 {[%clk 0:01:39]}  Ne5 {[%clk 0:02:57]} 9. Nd2 {[%clk 0:01:28]}  exd5 {[%clk 0:02:52]} 10. cxd5 {[%clk 0:01:27]}  Qe8 {[%clk 0:02:46]} 11. h3 {[%clk 0:01:17]}  f4 {[%clk 0:02:38]} 12. gxf4 {[%clk 0:01:17]}  Ng6 {[%clk 0:02:38]} 13. Nf3 {[%clk 0:01:01]}  Nh5 {[%clk 0:02:29]} 14. e3 {[%clk 0:01:00]}  Bd7 {[%clk 0:02:24]} 15. Nd4 {[%clk 0:00:59]}  Qc8 {[%clk 0:02:24]} 16. Qxh5 {[%clk 0:00:57]}  Rf6 {[%clk 0:02:16]} 17. Ne4 {[%clk 0:00:56]}  Rf8 {[%clk 0:02:14]} 18. Ng3 {[%clk 0:00:51]}  Bf6 {[%clk 0:02:07]} 19. Ne6 {[%clk 0:00:49]}  Bxe6 {[%clk 0:02:06]} 20. dxe6 {[%clk 0:00:50]}  Kh8 {[%clk 0:02:02]} 21. f5 {[%clk 0:00:50]}  Ne5 {[%clk 0:02:01]} 22. f4 {[%clk 0:00:49]}  Nd3 {[%clk 0:02:00]} 23. Qe2 {[%clk 0:00:49]}  Nxc1 {[%clk 0:01:59]} 24. Raxc1 {[%clk 0:00:50]}  Bh4 {[%clk 0:01:58]} 25. Nh5 {[%clk 0:00:40]}  Bf6 {[%clk 0:01:36]} 26. Nxf6 {[%clk 0:00:38]}  Rxf6 {[%clk 0:01:36]} 27. e4 {[%clk 0:00:37]}  d5 {[%clk 0:01:32]} 28. Rcd1 {[%clk 0:00:34]}  dxe4 {[%clk 0:01:31]} 29. Bxe4 {[%clk 0:00:35]}  Qf8 {[%clk 0:01:31]} 30. Kh1 {[%clk 0:00:34]}  Rh6 {[%clk 0:01:28]} 31. Kh2 {[%clk 0:00:28]}  Qf6 {[%clk 0:01:23]} 32. Rd3 {[%clk 0:00:29]}  Re8 {[%clk 0:01:18]} 33. Rfd1 {[%clk 0:00:28]}  Rh4 {[%clk 0:01:18]} 34. Qf3 {[%clk 0:00:26]}  h6 {[%clk 0:01:18]} 35. Qg3 {[%clk 0:00:25]}  c6 {[%clk 0:01:16]} 36. R1d2 {[%clk 0:00:21]}  Rh5 {[%clk 0:01:12]} 37. Bf3 {[%clk 0:00:19]}  Rh4 {[%clk 0:01:11]} 38. Rd4 {[%clk 0:00:18]}  a5 {[%clk 0:01:05]} 39. Re4 {[%clk 0:00:18]}  b5 {[%clk 0:01:02]} 40. e7 {[%clk 0:00:18]}  Kh7 {[%clk 0:00:15]} 41. Re6 {[%clk 0:00:15]}  Qxf5 {[%clk 0:00:14]} 42. Be4 {[%clk 0:00:15]}  Rxh3+ {[%clk 0:00:10]} 43. Qxh3 {[%clk 0:00:15]}  Qxe4 {[%clk 0:00:11]} 44. Rxe4 {[%clk 0:00:14]} 1-0


[Site "https://www.chess.com"]

[Event "Titled Tuesday Blitz February 15 Late 2022"]
[White "Loay, Sameer"]
[Black "Kosteniuk, Alexandra"]
[WhiteFideId "8104239"]
[BlackFideId "4128125"]
[WhiteElo "2040"]
[BlackElo "2469"]
[Result "0-1"]
[Round "06"]
[TimeControl "180+1"]
[Date "2022.02.16"]
[WhiteClock "0:00:06"]
[BlackClock "0:01:02"]

1. Nf3 {[%clk 0:02:57]}  Nf6 {[%clk 0:02:59]} 2. g3 {[%clk 0:02:58]}  d5 {[%clk 0:02:58]} 3. Bg2 {[%clk 0:02:58]}  c6 {[%clk 0:02:58]} 4. O-O {[%clk 0:02:58]}  Bg4 {[%clk 0:02:58]} 5. d3 {[%clk 0:02:58]}  Nbd7 {[%clk 0:02:56]} 6. Nbd2 {[%clk 0:02:58]}  e5 {[%clk 0:02:55]} 7. h3 {[%clk 0:02:57]}  Bxf3 {[%clk 0:02:54]} 8. Nxf3 {[%clk 0:02:56]}  Bd6 {[%clk 0:02:55]} 9. c4 {[%clk 0:02:56]}  O-O {[%clk 0:02:53]} 10. Rb1 {[%clk 0:02:57]}  Re8 {[%clk 0:02:53]} 11. b4 {[%clk 0:02:56]}  e4 {[%clk 0:02:49]} 12. dxe4 {[%clk 0:02:51]}  Nxe4 {[%clk 0:02:49]} 13. cxd5 {[%clk 0:02:50]}  Nc3 {[%clk 0:02:48]} 14. Qd3 {[%clk 0:02:46]}  Nxe2+ {[%clk 0:02:43]} 15. Kh2 {[%clk 0:02:44]}  Nxc1 {[%clk 0:02:40]} 16. Rfxc1 {[%clk 0:02:41]}  Nf6 {[%clk 0:02:39]} 17. b5 {[%clk 0:02:36]}  cxd5 {[%clk 0:02:38]} 18. Nd4 {[%clk 0:02:33]}  Qb6 {[%clk 0:02:32]} 19. Nf5 {[%clk 0:02:13]}  Bf8 {[%clk 0:02:32]} 20. Rc2 {[%clk 0:02:03]}  Rad8 {[%clk 0:02:27]} 21. a4 {[%clk 0:01:53]}  g6 {[%clk 0:02:23]} 22. Nd4 {[%clk 0:01:46]}  Bg7 {[%clk 0:02:23]} 23. Nb3 {[%clk 0:01:47]}  Ne4 {[%clk 0:02:22]} 24. a5 {[%clk 0:01:40]}  Qf6 {[%clk 0:02:18]} 25. f3 {[%clk 0:01:18]}  Nc3 {[%clk 0:02:14]} 26. Rbc1 {[%clk 0:01:18]}  d4 {[%clk 0:02:13]} 27. f4 {[%clk 0:01:05]}  Re3 {[%clk 0:02:06]} 28. Qc4 {[%clk 0:00:54]}  h5 {[%clk 0:02:04]} 29. h4 {[%clk 0:00:48]}  Qe7 {[%clk 0:01:54]} 30. Rd2 {[%clk 0:00:30]}  Re2 {[%clk 0:01:36]} 31. Rxe2 {[%clk 0:00:24]}  Nxe2 {[%clk 0:01:36]} 32. Rd1 {[%clk 0:00:20]}  Nxg3 {[%clk 0:01:31]} 33. Kxg3 {[%clk 0:00:17]}  Qe3+ {[%clk 0:01:30]} 34. Kh2 {[%clk 0:00:17]}  Qxf4+ {[%clk 0:01:30]} 35. Kg1 {[%clk 0:00:17]}  Be5 {[%clk 0:01:28]} 36. Rf1 {[%clk 0:00:11]}  Qh2+ {[%clk 0:01:25]} 37. Kf2 {[%clk 0:00:12]}  Qxh4+ {[%clk 0:01:25]} 38. Ke2 {[%clk 0:00:12]}  d3+ {[%clk 0:01:25]} 39. Qxd3 {[%clk 0:00:06]}  Rxd3 {[%clk 0:01:24]} 40. Kxd3 {[%clk 0:00:07]}  Qg3+ {[%clk 0:01:23]} 41. Bf3 {[%clk 0:00:07]}  g5 {[%clk 0:01:22]} 42. Ke4 {[%clk 0:00:07]}  Qf4+ {[%clk 0:01:22]} 43. Kd5 {[%clk 0:00:07]}  Qe3 {[%clk 0:01:20]} 44. Be4 {[%clk 0:00:06]}  Bf4 {[%clk 0:01:19]} 45. Nc5 {[%clk 0:00:06]}  b6 {[%clk 0:01:19]} 46. Nd7 {[%clk 0:00:06]}  Kg7 {[%clk 0:01:14]} 47. axb6 {[%clk 0:00:06]}  axb6 {[%clk 0:01:15]} 48. Bf5 {[%clk 0:00:07]}  Qd2+ {[%clk 0:01:08]} 49. Kc6 {[%clk 0:00:07]}  Qd6+ {[%clk 0:01:09]} 50. Kb7 {[%clk 0:00:07]}  Be3 {[%clk 0:01:06]} 51. Re1 {[%clk 0:00:05]}  Qd5+ {[%clk 0:01:06]} 52. Ka6 {[%clk 0:00:03]}  Qxf5 {[%clk 0:01:06]} 53. Rxe3 {[%clk 0:00:04]}  Qxd7 {[%clk 0:01:04]} 54. Rc3 {[%clk 0:00:04]}  h4 {[%clk 0:01:03]} 55. Rc6 {[%clk 0:00:05]}  h3 {[%clk 0:01:03]} 56. Kxb6 {[%clk 0:00:05]}  h2 {[%clk 0:01:02]} 57. Rc1 {[%clk 0:00:06]}  Qd6+ {[%clk 0:01:02]} 58. Ka7 {[%clk 0:00:06]}  Qa3+ {[%clk 0:01:02]} 0-1


[Site "https://www.chess.com"]